[Event "Early-Titled-Tuesday-Blitz-October-10-2023"]
[Site "Chess.com"]
[Date "2023.10.10"]
[Round "2"]
[White "ChessFighter_2011"]
[Black "draksbg"]
[Result "0-1"]
[WhiteElo "2860"]
[BlackElo "2602"]
[TimeControl "180+1"]
[EndTime "8:20:22 PDT"]
[Termination "draksbg won by resignation"]

1. d4 {[%clk 0:03:00.9]} 1... Nf6 {[%clk 0:03:00]} 2. Nf3 {[%clk 0:03:01.1]}
2... g6 {[%clk 0:03:00.3]} 3. Bf4 {[%clk 0:03:01.3]} 3... c5 {[%clk 0:02:57.6]}
4. c3 {[%clk 0:02:59.1]} 4... Bg7 {[%clk 0:02:56.7]} 5. h3 {[%clk 0:02:58.5]}
5... cxd4 {[%clk 0:02:55.9]} 6. cxd4 {[%clk 0:02:58]} 6... O-O {[%clk
0:02:55.5]} 7. Nc3 {[%clk 0:02:58.2]} 7... d6 {[%clk 0:02:55.1]} 8. e3 {[%clk
0:02:58.4]} 8... b6 {[%clk 0:02:54.3]} 9. Be2 {[%clk 0:02:58.7]} 9... Bb7 {[%clk
0:02:54.7]} 10. O-O {[%clk 0:02:59]} 10... Nbd7 {[%clk 0:02:54.8]} 11. Rc1
{[%clk 0:02:59.1]} 11... Rc8 {[%clk 0:02:54.4]} 12. a4 {[%clk 0:02:59.2]} 12...
Nd5 {[%clk 0:02:45.7]} 13. Nxd5 {[%clk 0:02:52.2]} 13... Bxd5 {[%clk 0:02:46.6]}
14. Bh2 {[%clk 0:02:46.6]} 14... Rxc1 {[%clk 0:02:45.4]} 15. Qxc1 {[%clk
0:02:46.7]} 15... Qa8 {[%clk 0:02:45.8]} 16. Qd2 {[%clk 0:02:38.5]} 16... Rc8
{[%clk 0:02:43.7]} 17. Rc1 {[%clk 0:02:38.8]} 17... Rxc1+ {[%clk 0:02:42.5]} 18.
Qxc1 {[%clk 0:02:38.8]} 18... Qc6 {[%clk 0:02:39.9]} 19. Qxc6 {[%clk 0:02:38.3]}
19... Bxc6 {[%clk 0:02:40.4]} 20. Bb5 {[%clk 0:02:39]} 20... Nb8 {[%clk
0:02:37.9]} 21. Nd2 {[%clk 0:02:37]} 21... Kf8 {[%clk 0:02:33]} 22. Kf1 {[%clk
0:02:31.5]} 22... Ke8 {[%clk 0:02:31.5]} 23. Ke2 {[%clk 0:02:25]} 23... Kd7
{[%clk 0:02:30]} 24. Nc4 {[%clk 0:02:15.7]} 24... Kc7 {[%clk 0:02:23.7]} 25.
Bxc6 {[%clk 0:02:15.7]} 25... Nxc6 {[%clk 0:02:23.5]} 26. Kd3 {[%clk 0:02:11]}
26... h5 {[%clk 0:02:19]} 27. Bf4 {[%clk 0:02:05.6]} 27... Bf6 {[%clk
0:02:18.1]} 28. g4 {[%clk 0:02:04.3]} 28... hxg4 {[%clk 0:02:18]} 29. hxg4
{[%clk 0:02:04.5]} 29... Nb4+ {[%clk 0:02:16.2]} 30. Kd2 {[%clk 0:01:59.4]}
30... Nd5 {[%clk 0:02:14.4]} 31. Bg3 {[%clk 0:01:58.7]} 31... Bg7 {[%clk
0:02:05.8]} 32. b3 {[%clk 0:01:47.6]} 32... Nf6 {[%clk 0:02:03.9]} 33. f3 {[%clk
0:01:47.2]} 33... Nd7 {[%clk 0:02:01.9]} 34. Kd3 {[%clk 0:01:46.4]} 34... a6
{[%clk 0:02:02.2]} 35. e4 {[%clk 0:01:46]} 35... b5 {[%clk 0:02:00.3]} 36. axb5
{[%clk 0:01:45.2]} 36... axb5 {[%clk 0:02:01.2]} 37. Ne3 {[%clk 0:01:45.8]}
37... e6 {[%clk 0:01:58.7]} 38. Nd1 {[%clk 0:01:43.4]} 38... Kc6 {[%clk
0:01:47]} 39. Nc3 {[%clk 0:01:43.4]} 39... d5 {[%clk 0:01:47.4]} 40. Na2 {[%clk
0:01:41.8]} 40... Bf8 {[%clk 0:01:46.8]} 41. Be1 {[%clk 0:01:39.8]} 41... Bd6
{[%clk 0:01:41.9]} 42. Bb4 {[%clk 0:01:35]} 42... Bf4 {[%clk 0:01:26.1]} 43. Be7
{[%clk 0:01:31.1]} 43... dxe4+ {[%clk 0:01:26.3]} 44. fxe4 {[%clk 0:01:29.8]}
44... Bd6 {[%clk 0:01:21.4]} 45. Bg5 {[%clk 0:01:16.7]} 45... f5 {[%clk
0:01:16.9]} 46. gxf5 {[%clk 0:01:11.4]} 46... gxf5 {[%clk 0:01:16.7]} 47. e5
{[%clk 0:01:08.1]} 47... Bf8 {[%clk 0:01:14]} 48. Bd8 {[%clk 0:00:59.1]} 48...
Nb6 {[%clk 0:01:10.6]} 49. Bxb6 {[%clk 0:00:55.2]} 49... Kxb6 {[%clk 0:01:11.5]}
50. Nc3 {[%clk 0:00:55.8]} 50... Kc6 {[%clk 0:01:11.9]} 51. Ne2 {[%clk
0:00:54.6]} 51... Bh6 {[%clk 0:01:10.8]} 52. Ng3 {[%clk 0:00:55.1]} 52... Bg5
{[%clk 0:00:54.7]} 53. Ne2 {[%clk 0:00:44.3]} 53... Bh6 {[%clk 0:00:50.9]} 54.
Ng3 {[%clk 0:00:44.5]} 54... Bg5 {[%clk 0:00:51]} 55. Nh5 {[%clk 0:00:45.1]}
55... Kd5 {[%clk 0:00:50.7]} 56. Nf6+ {[%clk 0:00:32.5]} 56... Kc6 {[%clk
0:00:32.1]} 57. Nh5 {[%clk 0:00:29]} 57... Kd5 {[%clk 0:00:32.1]} 58. Nf6+
{[%clk 0:00:29.3]} 58... Kc6 {[%clk 0:00:32.4]} 59. b4 {[%clk 0:00:17.9]} 59...
Bh4 {[%clk 0:00:29.4]} 60. Ng8 {[%clk 0:00:15.9]} 60... Bg5 {[%clk 0:00:25.1]}
61. Nf6 {[%clk 0:00:15.9]} 61... Bh4 {[%clk 0:00:15.2]} 62. Nh5 {[%clk
0:00:16.4]} 62... Bg5 {[%clk 0:00:13.9]} 63. Ng7 {[%clk 0:00:16.4]} 63... Kd5
{[%clk 0:00:13.8]} 64. Ne8 {[%clk 0:00:16.2]} 64... Kc6 {[%clk 0:00:12.6]} 65.
Nd6 {[%clk 0:00:16.7]} 65... Be7 {[%clk 0:00:12.5]} 66. Nf7 {[%clk 0:00:14.9]}
66... Bxb4 {[%clk 0:00:12.1]} 67. Ng5 {[%clk 0:00:15.5]} 67... Kd5 {[%clk
0:00:12.4]} 68. Nh3 {[%clk 0:00:15.7]} 68... Kc6 {[%clk 0:00:10.7]} 69. Nf4
{[%clk 0:00:16.1]} 69... Kd7 {[%clk 0:00:11.2]} 70. Ng6 {[%clk 0:00:15.8]} 70...
Be7 {[%clk 0:00:10.9]} 71. Nf4 {[%clk 0:00:16.1]} 71... Bg5 {[%clk 0:00:10.8]}
72. Ne2 {[%clk 0:00:16.5]} 72... Kc6 {[%clk 0:00:11]} 73. Ng3 {[%clk 0:00:12.9]}
73... Kd5 {[%clk 0:00:10.3]} 74. Nh5 {[%clk 0:00:12.8]} 74... b4 {[%clk
0:00:09.8]} 75. Ng3 {[%clk 0:00:11.6]} 75... f4 {[%clk 0:00:08.8]} 76. Ne4
{[%clk 0:00:11.7]} 76... Be7 {[%clk 0:00:09]} 77. Nd2 {[%clk 0:00:12.3]} 77...
Bf8 {[%clk 0:00:07.7]} 78. Nf3 {[%clk 0:00:12.3]} 78... b3 {[%clk 0:00:07.4]}
79. Nd2 {[%clk 0:00:11.8]} 79... b2 {[%clk 0:00:07.1]} 80. Nb1 {[%clk
0:00:12.4]} 80... Bb4 {[%clk 0:00:06.8]} 81. Kc2 {[%clk 0:00:10.7]} 81... Kxd4
{[%clk 0:00:05.6]} 82. Kxb2 {[%clk 0:00:11.3]} 82... Kd3 {[%clk 0:00:06.3]} 83.
Kb3 {[%clk 0:00:11.6]} 83... Ba5 {[%clk 0:00:04.8]} 84. Na3 {[%clk 0:00:12.1]}
84... f3 {[%clk 0:00:05.5]} 85. Nc4 {[%clk 0:00:12.7]} 85... Bc7 {[%clk
0:00:06]} 86. Nb2+ {[%clk 0:00:13]} 86... Ke2 {[%clk 0:00:06.2]} 0-1

[Event "Early-Titled-Tuesday-Blitz-October-10-2023"]
[Site "Chess.com"]
[Date "2023.10.10"]
[Round "3"]
[White "Cecile-Haussernot"]
[Black "stratacticos"]
[Result "1-0"]
[WhiteElo "2303"]
[BlackElo "1785"]
[TimeControl "180+1"]
[EndTime "8:23:46 PDT"]
[Termination "Cecile-Haussernot won by resignation"]

1. e4 {[%clk 0:03:00.9]} 1... c5 {[%clk 0:02:57.5]} 2. Nc3 {[%clk 0:03:00.6]}
2... Nc6 {[%clk 0:02:56.7]} 3. g3 {[%clk 0:03:01.1]} 3... g6 {[%clk 0:02:56.1]}
4. Bg2 {[%clk 0:03:01.8]} 4... Bg7 {[%clk 0:02:55.9]} 5. d3 {[%clk 0:03:02.2]}
5... d6 {[%clk 0:02:51.1]} 6. f4 {[%clk 0:03:02.8]} 6... e6 {[%clk 0:02:50.6]}
7. Nf3 {[%clk 0:03:03.4]} 7... Nge7 {[%clk 0:02:50.4]} 8. O-O {[%clk 0:03:04]}
8... O-O {[%clk 0:02:49.7]} 9. g4 {[%clk 0:03:04.4]} 9... f5 {[%clk 0:02:48.9]}
10. gxf5 {[%clk 0:03:03.4]} 10... gxf5 {[%clk 0:02:47]} 11. Qe1 {[%clk
0:03:03.7]} 11... fxe4 {[%clk 0:02:35.6]} 12. Nxe4 {[%clk 0:03:02.3]} 12... Nd4
{[%clk 0:02:32.5]} 13. Nxd4 {[%clk 0:03:00.4]} 13... Bxd4+ {[%clk 0:02:31.6]}
14. Kh1 {[%clk 0:03:00.6]} 14... Nf5 {[%clk 0:02:30.5]} 15. Ng5 {[%clk
0:02:55.3]} 15... h6 {[%clk 0:02:20.9]} 16. Nxe6 {[%clk 0:02:53]} 16... Bxe6
{[%clk 0:02:20.1]} 17. Qxe6+ {[%clk 0:02:52.1]} 17... Kh7 {[%clk 0:02:14.1]} 18.
Be4 {[%clk 0:02:50.5]} 18... Qf6 {[%clk 0:02:09.5]} 19. Qxf6 {[%clk 0:02:40.5]}
19... Rxf6 {[%clk 0:02:08.6]} 20. c3 {[%clk 0:02:40.9]} 20... Kh8 {[%clk
0:01:51.2]} 21. Bxf5 {[%clk 0:02:39.1]} 21... Rxf5 {[%clk 0:01:50.8]} 22. cxd4
{[%clk 0:02:39.7]} 22... cxd4 {[%clk 0:01:50.8]} 23. Bd2 {[%clk 0:02:39.2]}
23... Rc8 {[%clk 0:01:47.6]} 24. Rac1 {[%clk 0:02:38.9]} 24... Rfc5 {[%clk
0:01:44.9]} 25. Rxc5 {[%clk 0:02:37.4]} 25... dxc5 {[%clk 0:01:44.6]} 26. f5
{[%clk 0:02:36.9]} 1-0

[Event "Early-Titled-Tuesday-Blitz-October-10-2023"]
[Site "Chess.com"]
[Date "2023.10.10"]
[Round "3"]
[White "Zq1"]
[Black "LaPiToB"]
[Result "1-0"]
[WhiteElo "2512"]
[BlackElo "2289"]
[TimeControl "180+1"]
[EndTime "8:23:57 PDT"]
[Termination "Zq1 won by resignation"]

1. d4 {[%clk 0:03:00.9]} 1... Nf6 {[%clk 0:02:55.7]} 2. c4 {[%clk 0:03:00.9]}
2... e6 {[%clk 0:02:55.3]} 3. Nc3 {[%clk 0:02:59.4]} 3... Bb4 {[%clk 0:02:54.7]}
4. a3 {[%clk 0:02:59.7]} 4... Bxc3+ {[%clk 0:02:52.1]} 5. bxc3 {[%clk
0:03:00.4]} 5... O-O {[%clk 0:02:51.4]} 6. e3 {[%clk 0:03:00.6]} 6... c5 {[%clk
0:02:50.1]} 7. Bd3 {[%clk 0:03:00.4]} 7... d6 {[%clk 0:02:48.7]} 8. Ne2 {[%clk
0:03:00.2]} 8... Nc6 {[%clk 0:02:41.1]} 9. O-O {[%clk 0:02:58]} 9... e5 {[%clk
0:02:39.9]} 10. e4 {[%clk 0:02:55.8]} 10... b6 {[%clk 0:02:37.2]} 11. f3 {[%clk
0:02:52.7]} 11... Ba6 {[%clk 0:02:33.7]} 12. Bg5 {[%clk 0:02:47.8]} 12... Na5
{[%clk 0:02:25.7]} 13. Ng3 {[%clk 0:02:41]} 13... h6 {[%clk 0:02:17.2]} 14. Bxf6
{[%clk 0:02:39.5]} 14... Qxf6 {[%clk 0:02:15.8]} 15. f4 {[%clk 0:02:36.4]} 15...
exd4 {[%clk 0:02:11.6]} 16. e5 {[%clk 0:02:31.7]} 16... dxe5 {[%clk 0:02:05.9]}
17. Qg4 {[%clk 0:02:21.1]} 17... Bxc4 {[%clk 0:01:47.9]} 18. Nh5 {[%clk
0:02:19]} 1-0

[Event "Early-Titled-Tuesday-Blitz-October-10-2023"]
[Site "Chess.com"]
[Date "2023.10.10"]
[Round "3"]
[White "DonJuanEGenaro"]
[Black "BatboldNyamsuren0919"]
[Result "1-0"]
[WhiteElo "1845"]
[BlackElo "2297"]
[TimeControl "180+1"]
[EndTime "8:24:05 PDT"]
[Termination "DonJuanEGenaro won by resignation"]

1. d4 {[%clk 0:03:00.9]} 1... Nf6 {[%clk 0:02:59.7]} 2. Nf3 {[%clk 0:03:00.9]}
2... e6 {[%clk 0:02:58.6]} 3. g3 {[%clk 0:02:59.6]} 3... b6 {[%clk 0:02:59]} 4.
Bg2 {[%clk 0:02:59.6]} 4... Bb7 {[%clk 0:02:59.9]} 5. O-O {[%clk 0:02:59.5]}
5... Ke7 {[%clk 0:02:59.4]} 6. c4 {[%clk 0:02:58.6]} 6... Ke8 {[%clk 0:02:59.4]}
7. Nc3 {[%clk 0:02:58.3]} 7... Be7 {[%clk 0:02:59.8]} 8. Qc2 {[%clk 0:02:58.2]}
8... d6 {[%clk 0:02:58.2]} 9. e4 {[%clk 0:02:57.7]} 9... Nbd7 {[%clk 0:02:57.6]}
10. Re1 {[%clk 0:02:54.6]} 10... e5 {[%clk 0:02:56.2]} 11. dxe5 {[%clk
0:02:49.7]} 11... Nxe5 {[%clk 0:02:55.5]} 12. Nxe5 {[%clk 0:02:49]} 12... dxe5
{[%clk 0:02:56.4]} 13. Be3 {[%clk 0:02:47.8]} 13... Qc8 {[%clk 0:02:52.9]} 14.
Nd5 {[%clk 0:02:46.1]} 14... h6 {[%clk 0:02:51.1]} 15. Red1 {[%clk 0:02:44.5]}
15... Nxd5 {[%clk 0:02:49.4]} 16. cxd5 {[%clk 0:02:43.4]} 16... Bd6 {[%clk
0:02:49.3]} 17. Qd2 {[%clk 0:02:40.7]} 17... Kf8 {[%clk 0:02:48.7]} 18. a3
{[%clk 0:02:38.3]} 18... Kg8 {[%clk 0:02:48]} 19. Rac1 {[%clk 0:02:38.1]} 19...
Kh7 {[%clk 0:02:46.5]} 20. f4 {[%clk 0:02:38]} 20... Re8 {[%clk 0:02:39]} 21.
Rf1 {[%clk 0:02:34.4]} 21... f6 {[%clk 0:02:31.5]} 22. Qe2 {[%clk 0:02:28]}
22... Ba6 {[%clk 0:02:17.5]} 23. Qh5 {[%clk 0:02:27.5]} 23... Bxf1 {[%clk
0:02:01.3]} 24. Rxf1 {[%clk 0:02:24.7]} 24... g6 {[%clk 0:02:00.8]} 25. Qh4
{[%clk 0:02:21.1]} 25... Rf8 {[%clk 0:01:50.9]} 26. fxe5 {[%clk 0:02:20.3]}
26... Bxe5 {[%clk 0:01:50.2]} 27. Qxh6+ {[%clk 0:02:18.4]} 27... Kg8 {[%clk
0:01:46.4]} 28. Qxg6+ {[%clk 0:02:18.3]} 28... Kh8 {[%clk 0:01:45.3]} 29. Rf5
{[%clk 0:02:17.9]} 1-0

[Event "Early-Titled-Tuesday-Blitz-October-10-2023"]
[Site "Chess.com"]
[Date "2023.10.10"]
[Round "3"]
[White "MMAHDI2013"]
[Black "marvelavengers4"]
[Result "1-0"]
[WhiteElo "2505"]
[BlackElo "2281"]
[TimeControl "180+1"]
[EndTime "8:24:09 PDT"]
[Termination "MMAHDI2013 won by resignation"]

1. c4 {[%clk 0:02:50.7]} 1... c5 {[%clk 0:02:58.8]} 2. Nf3 {[%clk 0:02:48.6]}
2... Nf6 {[%clk 0:02:57.9]} 3. b3 {[%clk 0:02:49]} 3... Nc6 {[%clk 0:02:57.4]}
4. Bb2 {[%clk 0:02:49.5]} 4... e6 {[%clk 0:02:57.8]} 5. g3 {[%clk 0:02:48.6]}
5... Be7 {[%clk 0:02:58]} 6. Bg2 {[%clk 0:02:48.6]} 6... O-O {[%clk 0:02:58.6]}
7. O-O {[%clk 0:02:49.3]} 7... b6 {[%clk 0:02:58.9]} 8. d4 {[%clk 0:02:49]} 8...
Bb7 {[%clk 0:02:57.4]} 9. d5 {[%clk 0:02:44.9]} 9... Nd4 {[%clk 0:02:56.5]} 10.
Nxd4 {[%clk 0:02:44.1]} 10... cxd4 {[%clk 0:02:56.7]} 11. d6 {[%clk 0:02:42.6]}
11... Bxd6 {[%clk 0:02:56.1]} 12. Bxb7 {[%clk 0:02:41.7]} 12... Qc7 {[%clk
0:02:55.1]} 13. Bxa8 {[%clk 0:02:41.4]} 13... Rxa8 {[%clk 0:02:55.7]} 14. Qxd4
{[%clk 0:02:40.8]} 14... e5 {[%clk 0:02:54.6]} 15. Qd1 {[%clk 0:02:38.9]} 15...
e4 {[%clk 0:02:54.3]} 16. Nc3 {[%clk 0:02:39.6]} 16... Be5 {[%clk 0:02:52.8]}
17. Nb5 {[%clk 0:02:39.4]} 17... Qc5 {[%clk 0:02:52.3]} 18. Bxe5 {[%clk
0:02:39.6]} 18... Qxe5 {[%clk 0:02:53.2]} 19. Qd4 {[%clk 0:02:39.8]} 19... Qh5
{[%clk 0:02:52.9]} 20. f3 {[%clk 0:02:30.5]} 20... Re8 {[%clk 0:02:51.6]} 21.
Nd6 {[%clk 0:02:25.5]} 21... Re6 {[%clk 0:02:48.2]} 22. Nxe4 {[%clk 0:02:21.9]}
22... Nxe4 {[%clk 0:02:47.9]} 23. fxe4 {[%clk 0:02:21.6]} 23... Rh6 {[%clk
0:02:47.5]} 24. Qf2 {[%clk 0:02:21.5]} 24... Rf6 {[%clk 0:02:47.4]} 25. Qg2
{[%clk 0:02:21.3]} 25... Re6 {[%clk 0:02:47.3]} 26. Rf5 {[%clk 0:02:19.5]} 26...
Qg4 {[%clk 0:02:45.3]} 27. h3 {[%clk 0:02:16.5]} 27... Qg6 {[%clk 0:02:45]} 28.
Rd1 {[%clk 0:02:14.2]} 28... d6 {[%clk 0:02:44.4]} 29. g4 {[%clk 0:02:09]} 29...
f6 {[%clk 0:02:44.5]} 30. e5 {[%clk 0:02:08.7]} 30... fxe5 {[%clk 0:02:44.1]}
31. Qa8+ {[%clk 0:02:04.3]} 31... Re8 {[%clk 0:02:43]} 32. Qxa7 {[%clk
0:02:03.4]} 32... h5 {[%clk 0:02:41.8]} 33. Rxd6 {[%clk 0:01:57.8]} 33... Qxd6
{[%clk 0:02:39]} 34. Qf7+ {[%clk 0:01:58.3]} 34... Kh7 {[%clk 0:02:37.1]} 35.
Rxh5+ {[%clk 0:01:57.7]} 35... Qh6 {[%clk 0:02:31.7]} 36. Qxe8 {[%clk
0:01:56.9]} 1-0

[Event "Early-Titled-Tuesday-Blitz-October-10-2023"]
[Site "Chess.com"]
[Date "2023.10.10"]
[Round "3"]
[White "Jojo_898"]
[Black "borocotoajua"]
[Result "1-0"]
[WhiteElo "2395"]
[BlackElo "2573"]
[TimeControl "180+1"]
[EndTime "8:24:11 PDT"]
[Termination "Jojo_898 won by checkmate"]

1. e4 {[%clk 0:03:00.9]} 1... c6 {[%clk 0:02:59.8]} 2. d4 {[%clk 0:03:00.7]}
2... d5 {[%clk 0:03:00.4]} 3. Nc3 {[%clk 0:03:00.9]} 3... dxe4 {[%clk
0:03:00.2]} 4. Nxe4 {[%clk 0:03:01.2]} 4... Nd7 {[%clk 0:03:00.8]} 5. Nf3 {[%clk
0:03:00.9]} 5... Ngf6 {[%clk 0:03:00.4]} 6. Ng3 {[%clk 0:02:59.5]} 6... e6
{[%clk 0:02:56.8]} 7. Bd3 {[%clk 0:02:59.3]} 7... c5 {[%clk 0:02:53.7]} 8. O-O
{[%clk 0:02:57.5]} 8... cxd4 {[%clk 0:02:51.2]} 9. Nxd4 {[%clk 0:02:57.2]} 9...
Bd6 {[%clk 0:02:51.3]} 10. Bc4 {[%clk 0:02:40.4]} 10... Ne5 {[%clk 0:02:31.8]}
11. Bb3 {[%clk 0:02:39.3]} 11... O-O {[%clk 0:02:28.2]} 12. Bg5 {[%clk
0:02:39.4]} 12... Be7 {[%clk 0:02:10]} 13. Re1 {[%clk 0:02:31.1]} 13... Ng6
{[%clk 0:02:08.4]} 14. c3 {[%clk 0:02:28.7]} 14... h6 {[%clk 0:02:08.4]} 15. Bd2
{[%clk 0:02:27.3]} 15... Bd7 {[%clk 0:02:06.3]} 16. Qe2 {[%clk 0:02:27.3]} 16...
a6 {[%clk 0:01:59.5]} 17. Bc2 {[%clk 0:02:24.5]} 17... Nh8 {[%clk 0:01:34.8]}
18. Rad1 {[%clk 0:02:21.4]} 18... Qc7 {[%clk 0:01:34.7]} 19. Qd3 {[%clk
0:02:16.1]} 19... Ng4 {[%clk 0:01:20.2]} 20. Qh7# {[%clk 0:02:12.2]} 1-0

[Event "Early-Titled-Tuesday-Blitz-October-10-2023"]
[Site "Chess.com"]
[Date "2023.10.10"]
[Round "3"]
[White "carokannlover213"]
[Black "GM4life"]
[Result "1-0"]
[WhiteElo "2729"]
[BlackElo "2489"]
[TimeControl "180+1"]
[EndTime "8:24:35 PDT"]
[Termination "carokannlover213 won by resignation"]

1. Nf3 {[%clk 0:03:00.9]} 1... c6 {[%clk 0:03:00.9]} 2. c4 {[%clk 0:02:59.4]}
2... d5 {[%clk 0:03:01.8]} 3. e3 {[%clk 0:02:58.1]} 3... Nf6 {[%clk 0:03:00.8]}
4. Nc3 {[%clk 0:02:58]} 4... g6 {[%clk 0:03:00.5]} 5. cxd5 {[%clk 0:02:57.5]}
5... cxd5 {[%clk 0:02:59.9]} 6. d4 {[%clk 0:02:58.4]} 6... Bg7 {[%clk 0:03:00]}
7. Bb5+ {[%clk 0:02:58.7]} 7... Bd7 {[%clk 0:02:58.9]} 8. Qb3 {[%clk 0:02:59.2]}
8... O-O {[%clk 0:02:54.3]} 9. Bxd7 {[%clk 0:02:35.6]} 9... Qxd7 {[%clk
0:02:53.5]} 10. Ne5 {[%clk 0:02:36.1]} 10... Qd6 {[%clk 0:02:43]} 11. Qxb7
{[%clk 0:02:34.7]} 11... Nbd7 {[%clk 0:02:42.5]} 12. Nxd7 {[%clk 0:02:34.9]}
12... Nxd7 {[%clk 0:02:37.1]} 13. Qxd5 {[%clk 0:02:33.8]} 13... Qc7 {[%clk
0:02:34.8]} 14. O-O {[%clk 0:02:28.4]} 14... Rfd8 {[%clk 0:02:33.8]} 15. Qf3
{[%clk 0:02:25.8]} 15... e5 {[%clk 0:02:32.4]} 16. Bd2 {[%clk 0:02:07.3]} 16...
exd4 {[%clk 0:02:30]} 17. exd4 {[%clk 0:02:08.2]} 17... Bxd4 {[%clk 0:02:29.6]}
18. Nb5 {[%clk 0:02:08.3]} 18... Qc5 {[%clk 0:02:28.8]} 19. Nxd4 {[%clk
0:02:07.4]} 19... Qxd4 {[%clk 0:02:29.7]} 20. Bc3 {[%clk 0:02:07.5]} 20... Qc4
{[%clk 0:02:29.4]} 21. Rfd1 {[%clk 0:01:55.4]} 21... Rac8 {[%clk 0:02:26.4]} 22.
Rxd7 {[%clk 0:01:48.7]} 22... Rxd7 {[%clk 0:02:27.3]} 23. Qf6 {[%clk 0:01:48.5]}
23... Kf8 {[%clk 0:02:27.5]} 24. Re1 {[%clk 0:01:43]} 1-0

[Event "Early-Titled-Tuesday-Blitz-October-10-2023"]
[Site "Chess.com"]
[Date "2023.10.10"]
[Round "3"]
[White "Quattroporte300"]
[Black "mary-sanna"]
[Result "1-0"]
[WhiteElo "2383"]
[BlackElo "2139"]
[TimeControl "180+1"]
[EndTime "8:24:55 PDT"]
[Termination "Quattroporte300 won by resignation"]

1. e4 {[%clk 0:03:00.9]} 1... c5 {[%clk 0:02:59.6]} 2. Nc3 {[%clk 0:03:00.1]}
2... Nc6 {[%clk 0:02:59.2]} 3. g3 {[%clk 0:02:59.1]} 3... g6 {[%clk 0:02:59.1]}
4. Bg2 {[%clk 0:02:59.6]} 4... Bg7 {[%clk 0:02:59.3]} 5. Nge2 {[%clk 0:03:00.3]}
5... e6 {[%clk 0:02:59.3]} 6. O-O {[%clk 0:03:00.8]} 6... Nge7 {[%clk
0:02:59.4]} 7. d3 {[%clk 0:03:01]} 7... O-O {[%clk 0:02:59.4]} 8. f4 {[%clk
0:03:01.4]} 8... d5 {[%clk 0:02:55.9]} 9. e5 {[%clk 0:02:58.6]} 9... Rb8 {[%clk
0:02:49.6]} 10. Nb5 {[%clk 0:02:53.3]} 10... Bd7 {[%clk 0:02:28.3]} 11. Nd6
{[%clk 0:02:43.5]} 11... Nc8 {[%clk 0:02:28]} 12. Nb5 {[%clk 0:02:36.3]} 12...
a6 {[%clk 0:02:27.5]} 13. Nbc3 {[%clk 0:02:35.7]} 13... b5 {[%clk 0:02:27.6]}
14. Kh1 {[%clk 0:02:31.1]} 14... b4 {[%clk 0:02:25.9]} 15. Na4 {[%clk
0:02:29.7]} 15... Qa5 {[%clk 0:02:25.3]} 16. b3 {[%clk 0:02:29.9]} 16... Nd4
{[%clk 0:01:57.5]} 17. Nxd4 {[%clk 0:02:24.2]} 17... cxd4 {[%clk 0:01:58.4]} 18.
Bb2 {[%clk 0:02:24.8]} 18... Bxa4 {[%clk 0:01:55.9]} 19. bxa4 {[%clk 0:02:24.4]}
19... Qxa4 {[%clk 0:01:56]} 20. Bxd4 {[%clk 0:02:24.2]} 20... Ne7 {[%clk
0:01:55.2]} 21. Bc5 {[%clk 0:02:16.8]} 21... Rb7 {[%clk 0:01:46.6]} 22. a3
{[%clk 0:02:14.3]} 22... Rc8 {[%clk 0:01:36.7]} 23. axb4 {[%clk 0:02:11.3]}
23... Qc6 {[%clk 0:01:28.3]} 24. Ra5 {[%clk 0:02:10.2]} 24... Rb5 {[%clk
0:01:06.2]} 25. Rxb5 {[%clk 0:02:00.4]} 25... axb5 {[%clk 0:01:05.5]} 26. Bxe7
{[%clk 0:02:00.8]} 1-0

[Event "Early-Titled-Tuesday-Blitz-October-10-2023"]
[Site "Chess.com"]
[Date "2023.10.10"]
[Round "3"]
[White "zverr1"]
[Black "Mikhail_Bryakin"]
[Result "0-1"]
[WhiteElo "2505"]
[BlackElo "2799"]
[TimeControl "180+1"]
[EndTime "8:24:59 PDT"]
[Termination "Mikhail_Bryakin won by resignation"]

1. d4 {[%clk 0:03:00.9]} 1... g6 {[%clk 0:02:58.4]} 2. e4 {[%clk 0:03:00.4]}
2... Bg7 {[%clk 0:02:58.4]} 3. Nf3 {[%clk 0:02:57.5]} 3... d6 {[%clk 0:02:58.6]}
4. Bc4 {[%clk 0:02:56.9]} 4... c6 {[%clk 0:02:56.6]} 5. Qe2 {[%clk 0:02:52.2]}
5... b5 {[%clk 0:02:56]} 6. Bb3 {[%clk 0:02:51.2]} 6... Nf6 {[%clk 0:02:53]} 7.
Bg5 {[%clk 0:02:45.1]} 7... O-O {[%clk 0:02:50.4]} 8. e5 {[%clk 0:02:42.8]} 8...
dxe5 {[%clk 0:02:50]} 9. dxe5 {[%clk 0:02:43.7]} 9... Nd5 {[%clk 0:02:49.8]} 10.
O-O {[%clk 0:02:38.8]} 10... h6 {[%clk 0:02:49.4]} 11. Bh4 {[%clk 0:02:30.9]}
11... Qc7 {[%clk 0:02:42.8]} 12. Bxd5 {[%clk 0:02:23.4]} 12... cxd5 {[%clk
0:02:42]} 13. Nc3 {[%clk 0:02:24.3]} 13... e6 {[%clk 0:02:35.7]} 14. Nxb5 {[%clk
0:02:22.8]} 14... Qb6 {[%clk 0:02:36.2]} 15. Be7 {[%clk 0:02:02.5]} 15... Re8
{[%clk 0:02:35.4]} 16. Nd6 {[%clk 0:02:01.8]} 16... Ba6 {[%clk 0:02:32.6]} 17.
Qd2 {[%clk 0:01:21.7]} 17... Rxe7 {[%clk 0:02:27.3]} 18. b4 {[%clk 0:01:17.9]}
18... Bxf1 {[%clk 0:02:26.7]} 19. Rxf1 {[%clk 0:01:15.6]} 19... Nc6 {[%clk
0:02:26.8]} 20. b5 {[%clk 0:01:15.1]} 20... Nxe5 {[%clk 0:02:25.9]} 21. Nxe5
{[%clk 0:01:14.9]} 21... Bxe5 {[%clk 0:02:26.8]} 22. Qxh6 {[%clk 0:01:04.2]}
22... Qxd6 {[%clk 0:02:25.3]} 23. h4 {[%clk 0:01:03.1]} 23... Rc8 {[%clk
0:02:22.8]} 24. f4 {[%clk 0:01:00.5]} 24... Bg7 {[%clk 0:02:19.2]} 25. Qg5
{[%clk 0:01:00.2]} 25... Rxc2 {[%clk 0:02:17.7]} 26. h5 {[%clk 0:01:00.3]} 26...
gxh5 {[%clk 0:02:17.1]} 27. f5 {[%clk 0:00:59.5]} 27... exf5 {[%clk 0:02:16.5]}
28. Qxf5 {[%clk 0:00:59.5]} 28... Rxg2+ {[%clk 0:02:12]} 29. Kxg2 {[%clk
0:00:57.6]} 29... Qg6+ {[%clk 0:02:12.7]} 0-1